bitfinex/quotes_ETHUSD_20250629
["timestamp","ask_amount","ask_price","bid_price","bid_amount"]
[1751213932027,0.001,2439.6,2439.5,14.96167495]
[1751213935643,0.001,2439.6,2439.5,24.96167495]
[1751213936208,0.001,2439.6,2439.5,16.65667495]
[1751213936422,0.001,2439.6,2439.5,24.96067495]
[1751213939051,0.001,2439.6,2439.5,13.40020065]
[1751213939848,0.001,2439.6,2439.5,5.09620065]
[1751213940052,0.001,2439.6,2439.5,11.71020065]
[1751213940351,0.001,2439.6,2439.5,11.70920065]
[1751213940554,0.001,2439.6,2439.5,5.09620065]
[1751213940857,0.001,2439.6,2439.5,11.70920065]
[1751213943955,0.001,2439.6,2439.5,11.50340065]
[1751213946257,0.001,2439.6,2439.5,4.89140065]
[1751213946561,0.001,2439.6,2439.5,11.50340065]
[1751213948863,0.001,2439.6,2439.5,6.612]
[1751213949562,0.001,2439.6,2439.5,10.71120065]
[1751213950261,0.001,2439.6,2439.4,4.30403979]
[1751213950430,0.001,2439.6,2439.5,10.71120065]
[1751213952468,0.001,2439.6,2439.5,11.53140065]
[1751213955471,0.001,2439.6,2439.5,13.75894469]
[1751213956469,0.001,2439.6,2439.5,13.96374469]
[1751213961182,0.001,2439.6,2439.5,18.71374469]
[1751213962077,8.33371577,2439.6,2438.9,0.002]
[1751213962371,8.33371577,2439.6,2439.1,4.09972676]
[1751213962372,4.89804887,2439.6,2439.1,4.09972676]
[1751213962672,4.09921535,2439.5,2439.2,6.621]
[1751213962854,4.09921535,2439.5,2438.9,4.10212709]
[1751213963053,4.09921535,2439.5,2439.0,6.621]
[1751213963578,4.09921535,2439.5,2438.9,4.10212709]
[1751213963791,4.89794521,2439.6,2438.9,4.10212709]
[1751213963792,4.09939788,2439.4,2439.0,6.621]
[1751213963979,4.09939788,2439.4,2438.9,5.79212709]
[1751213963980,4.0992247,2439.5,2438.9,0.002]
[1751213964275,5.34273616,2439.4,2438.9,0.002]
[1751213964574,4.89744477,2439.3,2439.0,6.62]
[1751213965181,0.7979,2439.3,2439.0,6.62]
[1751213966949,4.89746168,2439.3,2439.0,6.62]
[1751213969254,0.7979,2439.3,2439.0,6.62]
[1751213969547,0.7979,2439.5,2439.1,4.09973031]
[1751213969872,1.69758261,2439.5,2439.1,4.09973031]
[1751213972087,0.2048,2439.3,2439.1,4.09973031]
[1751213972582,0.2048,2439.3,2439.0,11.54615254]
[1751213973892,0.2048,2439.3,2439.1,4.09985006]
[1751213975190,0.2048,2439.3,2439.0,11.54614457]
[1751213976392,0.2048,2439.3,2439.1,4.09986596]
[1751213977189,0.2048,2439.3,2439.0,11.54609923]
[1751213979495,0.2048,2439.3,2439.1,4.09987149]
[1751213979684,0.2048,2439.3,2439.2,6.617]
[1751213984402,0.2048,2439.3,2439.2,10.71670482]
[1751213985781,0.2048,2439.3,2439.2,6.617]
[1751213986901,0.2048,2439.3,2438.9,4.9568]
[1751213987106,8.33271577,2439.2,2438.9,4.752]
[1751213987322,11.63485677,2439.0,2438.9,0.002]
[1751213987631,23.57036039,2439.0,2438.9,0.002]
[1751213989730,24.12036039,2439.0,2438.9,0.002]
[1751213992544,22.98275677,2439.0,2438.9,0.002]
[1751213996535,24.12036039,2439.0,2438.9,0.002]
[1751214001441,54.12036039,2439.0,2438.9,0.002]
[1751214003806,0.7644,2438.8,2438.6,0.002]
[1751214004005,62.39536476,2438.7,2438.6,0.002]
[1751214006908,32.39536476,2438.7,2438.6,0.002]
[1751214007140,62.39536476,2438.7,2438.6,0.002]
[1751214007817,36.71036476,2438.7,2438.6,0.002]
[1751214008021,32.39536476,2438.7,2438.6,0.002]
[1751214008216,62.39536476,2438.7,2438.6,0.002]
[1751214008832,62.70561964,2438.7,2438.6,0.002]
[1751214012460,62.70561964,2438.7,2437.9,0.002]
[1751214012461,4.10172272,2438.0,2437.9,0.002]
[1751214012743,62.43004211,2438.0,2437.9,0.002]
[1751214013752,62.43104211,2438.0,2437.9,0.002]
[1751214015917,34.6522275,2437.7,2437.6,0.002]
[1751214016115,60.70234689,2437.7,2437.6,0.002]
[1751214016316,52.94724818,2437.4,2437.3,0.002]
[1751214016516,32.3948518,2437.4,2437.3,0.002]
[1751214016716,62.3948518,2437.4,2437.3,0.002]
[1751214018122,55.17072041,2437.4,2437.3,0.002]
[1751214018325,15.55102041,2437.4,2437.3,0.002]
[1751214018622,22.72341679,2437.4,2437.3,0.002]
[1751214026781,53.9431727,2437.4,2437.3,0.002]
[1751214027772,23.9431727,2437.4,2437.3,0.002]
[1751214027981,53.9431727,2437.4,2437.3,0.002]
[1751214028575,14.96341679,2437.4,2437.3,0.002]
[1751214028745,22.72641679,2437.4,2437.3,0.002]
[1751214029143,14.41341679,2437.4,2437.3,0.002]
[1751214029371,16.93268438,2437.4,2437.3,0.002]
[1751214029755,6.626,2437.4,2437.3,0.002]
[1751214029954,16.626,2437.4,2437.3,0.002]
[1751214030879,10.0,2437.4,2437.3,0.002]
[1751214031082,16.626,2437.4,2437.3,0.002]
[1751214031247,20.72873241,2437.4,2437.3,0.002]
[1751214031648,16.626,2437.4,2437.3,0.002]
[1751214032792,10.0,2437.4,2437.3,0.002]
[1751214033087,10.2048,2437.4,2437.3,0.7672]
[1751214038012,14.30753241,2437.4,2437.3,0.7672]
[1751214038711,10.2048,2437.4,2437.3,0.7672]
[1751214039930,25.09921727,2437.4,2437.3,0.002]
[1751214040096,31.72021727,2437.4,2437.3,0.002]
[1751214040914,32.51811727,2437.4,2437.3,0.002]
[1751214041934,32.82641863,2437.4,2437.3,0.002]
[1751214044237,63.37641863,2437.4,2437.3,0.002]
[1751214044637,64.04617454,2437.4,2437.3,0.002]
[1751214049488,34.04617454,2437.4,2437.3,0.002]
[1751214049686,64.04617454,2437.4,2437.3,0.002]
[1751214053812,4.65323745,2437.1,2437.0,0.002]
[1751214053948,61.29595322,2437.1,2437.0,0.002]
[1751214054153,61.96570913,2437.1,2437.0,0.002]
[1751214055899,62.17164236,2437.1,2437.0,0.002]
[1751214056704,61.96570913,2437.1,2437.0,0.002]
[1751214056874,65.22257822,2437.1,2437.0,0.002]
[1751214059794,35.42317767,2437.1,2437.0,0.002]
[1751214060001,65.42317767,2437.1,2437.0,0.002]
[1751214060760,35.42317767,2437.1,2437.0,0.002]
[1751214060962,65.42317767,2437.1,2437.0,0.002]
[1751214063706,46.09376173,2437.0,2436.9,0.002]
[1751214063921,46.60881367,2437.0,2436.9,0.002]
[1751214066655,16.60881367,2437.0,2436.9,0.002]
[1751214066808,46.60881367,2437.0,2436.9,0.002]
[1751214068034,50.92781367,2437.0,2436.9,0.002]
[1751214068335,52.60368998,2436.9,2436.8,0.002]
[1751214068538,63.15231498,2436.9,2436.8,0.002]
[1751214071496,63.15231498,2436.9,2436.5,0.001]
[1751214071497,44.65407945,2436.6,2436.5,0.001]
[1751214071839,61.17465113,2436.6,2436.5,0.001]
[1751214072441,61.92685113,2436.6,2436.5,0.001]
[1751214072643,14.30904789,2436.5,2436.4,0.001]
[1751214072798,52.11585574,2436.5,2436.4,0.001]
[1751214073747,45.49385574,2436.5,2436.4,0.001]
[1751214074063,53.80985574,2436.5,2436.4,0.001]
[1751214074399,54.56205574,2436.5,2436.4,0.001]
[1751214075719,46.24605574,2436.5,2436.4,0.001]
[1751214075946,54.56205574,2436.5,2436.4,0.001]
[1751214076835,61.9771156,2436.5,2436.4,0.001]
[1751214077134,61.2249156,2436.5,2436.4,0.001]
[1751214077343,62.66573817,2436.5,2436.4,0.001]
[1751214079051,54.34973817,2436.5,2436.4,0.001]
[1751214079246,62.66573817,2436.5,2436.4,0.001]
[1751214079441,32.66573817,2436.5,2436.4,0.001]
[1751214079745,62.66573817,2436.5,2436.4,0.001]
[1751214080148,46.8149224,2436.5,2436.4,0.001]
[1751214080350,61.2249156,2436.5,2436.4,0.001]
[1751214081022,61.9968156,2436.5,2436.4,0.001]
[1751214081945,62.66573817,2436.5,2436.4,0.001]
[1751214083249,32.66573817,2436.5,2436.4,0.001]
[1751214083455,62.66573817,2436.5,2436.4,0.001]
[1751214084648,0.2048,2436.5,2436.4,0.001]
[1751214084835,0.2048,2436.5,2436.4,0.8298]
[1751214085042,16.8298,2436.5,2436.4,0.8298]
[1751214085621,10.2048,2436.5,2436.4,0.8298]
[1751214086549,0.2048,2436.5,2436.4,0.8298]
[1751214087156,0.2048,2436.5,2436.4,4.93421635]
[1751214088251,0.2048,2436.5,2436.4,5.83820696]
[1751214088654,4.10332624,2437.1,2436.6,4.10396405]
[1751214088857,10.18258148,2436.9,2436.7,0.82]
[1751214089723,0.2048,2436.9,2436.7,0.82]
[1751214090353,0.2048,2436.9,2436.7,4.92389325]
[1751214090659,0.2048,2436.9,2436.7,0.82]
[1751214090855,10.2048,2436.9,2436.7,0.82]
[1751214091236,0.2048,2436.9,2436.7,4.92388672]
[1751214091637,0.2048,2436.9,2436.7,0.82]
[1751214092236,0.2048,2436.9,2436.7,4.92389461]
[1751214093362,0.2048,2436.9,2436.8,4.10374261]
[1751214093659,0.2048,2436.9,2436.8,0.8106]
[1751214093865,10.2048,2436.9,2436.8,0.8106]
[1751214094044,10.2068,2436.9,2436.8,0.8106]
[1751214094561,20.0891398,2436.9,2436.5,0.8106]
[1751214094732,4.10407945,2436.6,2436.5,0.8106]
[1751214096862,4.10407945,2436.6,2436.4,0.001]
[1751214097062,7.73961577,2436.5,2436.4,0.001]
[1751214097432,11.84386366,2436.5,2436.4,0.001]
[1751214097843,7.73961577,2436.5,2436.4,0.001]
[1751214098567,0.2048,2436.5,2436.4,0.001]
[1751214099164,4.30904789,2436.5,2436.4,0.001]
[1751214099466,0.2048,2436.5,2436.4,0.001]
[1751214099676,4.30904789,2436.5,2436.4,0.001]
[1751214100793,0.2048,2436.5,2436.4,0.001]
[1751214100950,4.30904789,2436.5,2436.4,0.001]
[1751214101498,4.82362912,2436.5,2436.4,0.001]
[1751214102072,12.35844489,2436.5,2436.4,0.001]
[1751214103151,8.254197,2436.5,2436.4,0.001]
[1751214103351,7.73961577,2436.5,2436.4,0.001]
[1751214103582,11.84386366,2436.5,2436.4,0.001]
[1751214104486,7.73961577,2436.5,2436.4,0.001]
[1751214104667,11.84386366,2436.5,2436.4,0.001]
[1751214108883,29.26376366,2436.5,2436.4,0.001]
[1751214109480,59.26376366,2436.5,2436.4,0.001]
[1751214109986,29.26376366,2436.5,2436.4,0.001]
[1751214112588,60.48268623,2436.5,2436.4,0.001]
[1751214113496,30.48268623,2436.5,2436.4,0.001]
[1751214113792,22.63504789,2436.5,2436.4,0.001]
[1751214114777,20.94204789,2436.5,2436.4,0.001]
[1751214114983,14.30904789,2436.5,2436.4,0.001]
[1751214115179,10.2048,2436.5,2436.4,0.001]
[1751214115396,16.8408,2436.5,2436.4,0.001]
[1751214115694,14.30904789,2436.5,2436.4,0.001]
[1751214115873,17.56744264,2436.5,2436.4,0.001]
[1751214118187,14.30904789,2436.5,2436.4,0.001]
[1751214118497,10.2048,2436.5,2436.4,0.001]
[1751214119153,14.30904789,2436.5,2436.4,0.001]
[1751214119266,21.84386366,2436.5,2436.4,0.001]
[1751214122501,20.95004789,2436.5,2436.4,0.001]
[1751214123791,16.8458,2436.5,2436.4,0.001]
[1751214123992,20.95004789,2436.5,2436.4,0.001]
[1751214124510,14.30904789,2436.5,2436.4,0.001]
[1751214133628,17.5678443,2436.5,2436.4,0.001]
[1751214134498,14.30904789,2436.5,2436.4,0.001]
[1751214137107,21.84386366,2436.5,2436.4,0.001]
[1751214139053,14.30904789,2436.5,2436.4,0.001]
[1751214139439,20.94004789,2436.5,2436.4,0.001]
[1751214140958,10.2048,2436.5,2436.4,0.001]
[1751214141260,16.8358,2436.5,2436.4,0.001]
[1751214143058,10.2048,2436.5,2436.4,0.001]
[1751214144067,14.30904789,2436.5,2436.4,0.001]
[1751214146731,10.2048,2436.5,2436.4,0.001]
[1751214146927,0.2048,2436.5,2436.4,4.10541635]
[1751214147127,10.2048,2436.8,2436.4,5.40151517]
[1751214150227,0.2048,2436.8,2436.4,5.40146101]
[1751214150427,0.2048,2436.8,2436.5,4.1040958]
[1751214150633,10.2048,2436.8,2436.4,10.15142442]
[1751214151058,0.2048,2436.8,2436.4,10.15142442]
[1751214151232,0.2048,2436.8,2436.5,1.44617393]
[1751214152364,0.2048,2436.8,2436.5,5.55041997]
[1751214152978,0.2048,2436.8,2436.5,1.44617393]
[1751214153128,0.2048,2436.8,2436.5,5.55040902]
[1751214153733,0.2048,2436.8,2436.6,4.10407924]
[1751214154064,0.2048,2436.8,2436.6,5.54464399]
[1751214155148,0.2048,2436.8,2436.7,4.10391102]
[1751214155667,0.002,2436.9,2436.8,4.10374261]
[1751214155834,0.002,2436.9,2436.7,4.3086225]
[1751214156032,0.002,2436.9,2436.8,5.0890632]
[1751214157288,0.002,2436.9,2436.8,0.98532059]
[1751214158969,0.002,2436.9,2436.8,5.0890632]
[1751214162097,4.10424789,2436.5,2436.4,0.001]
[1751214162387,22.43696366,2436.5,2436.4,0.001]
[1751214163088,10.7979,2436.5,2436.4,0.001]
[1751214163750,14.90214789,2436.5,2436.4,0.001]
[1751214171558,17.55625437,2436.5,2436.4,0.001]
[1751214172459,10.7979,2436.5,2436.4,0.001]
[1751214172788,11.0027,2436.5,2436.4,0.001]
[1751214173497,0.2048,2436.5,2436.4,0.001]
[1751214174494,0.2048,2436.5,2436.4,4.10541635]
[1751214174994,0.2048,2436.5,2436.4,0.001]
[1751214177124,0.2048,2436.5,2436.4,4.59759733]
[1751214179713,0.2048,2436.5,2436.4,0.49318098]
[1751214181112,0.2048,2436.5,2436.4,4.59759733]
[1751214182217,0.2048,2436.7,2436.5,4.10419019]
[1751214183220,0.2048,2436.7,2436.6,4.10407945]
[1751214183386,0.2048,2436.7,2436.6,5.05723428]
[1751214183798,0.2048,2436.7,2436.6,0.95315483]
[1751214184110,0.2048,2436.7,2436.6,5.05723428]
[1751214184412,0.2048,2436.7,2436.6,0.95315483]
[1751214187032,0.2048,2436.7,2436.4,4.59750708]
[1751214188911,0.2048,2436.7,2436.4,9.34750708]
[1751214189119,4.30885127,2436.7,2436.4,5.24318098]
[1751214189432,5.10675127,2436.7,2436.4,11.394]
[1751214190106,0.2048,2436.6,2436.4,4.751]
[1751214190301,4.30889515,2436.6,2436.4,4.751]
[1751214193331,0.2048,2436.6,2436.4,4.751]
[1751214194726,0.2048,2436.6,2436.4,0.001]
[1751214201936,4.3088812,2436.6,2436.4,0.001]
[1751214202549,0.2048,2436.6,2436.4,0.001]
[1751214203559,4.30889995,2436.6,2436.4,0.001]
[1751214203748,0.2048,2436.6,2436.4,0.001]
[1751214205572,4.30890737,2436.6,2436.4,0.001]
[1751214207658,0.2048,2436.6,2436.4,0.001]
[1751214209566,4.3088812,2436.6,2436.4,0.001]
[1751214213572,0.2048,2436.6,2436.4,0.001]
[1751214215074,4.30888025,2436.6,2436.4,0.001]
[1751214215975,0.2048,2436.6,2436.4,0.001]
[1751214216343,4.30888608,2436.6,2436.4,0.001]
[1751214218178,0.2048,2436.6,2436.4,0.001]
[1751214219978,0.2048,2436.6,2436.4,4.10539414]
[1751214220583,0.2048,2436.6,2436.4,0.001]
[1751214221075,0.2048,2436.6,2436.5,4.10424789]
[1751214221268,0.2048,2436.6,2436.4,4.10533254]
[1751214222561,0.2048,2436.6,2436.4,0.001]
[1751214222762,0.2048,2436.6,2436.4,4.1053674]
[1751214223081,0.2048,2436.6,2436.4,0.001]
[1751214225888,0.2048,2436.6,2436.4,4.10530918]
[1751214226056,0.2048,2436.6,2436.4,5.69411747]
[1751214227681,0.2048,2436.6,2436.5,4.10424789]
[1751214227884,0.2048,2436.6,2436.4,5.69410005]
[1751214229094,0.2048,2436.6,2436.4,1.58980829]
[1751214229386,0.2048,2436.6,2436.4,0.001]
[1751214230989,0.2048,2436.6,2436.4,4.10540967]
[1751214232784,0.2048,2436.6,2436.5,4.10424789]
[1751214233279,0.2048,2436.6,2436.4,4.10533866]
[1751214234318,0.2048,2436.6,2436.5,4.10424789]
[1751214246416,0.002,2436.9,2436.7,4.10385487]
[1751214246618,0.2048,2436.8,2436.7,4.10385487]
[1751214246779,0.002,2436.9,2436.8,4.10374261]
[1751214247282,0.002,2436.9,2436.7,4.1038671]
[1751214247485,0.002,2436.9,2436.8,4.10374261]
[1751214247681,0.002,2436.9,2436.8,4.86144261]
[1751214250860,0.002,2436.9,2436.8,0.7577]
[1751214251151,0.2048,2436.8,2436.6,4.75]
[1751214251437,0.2048,2436.8,2436.6,4.10406699]
[1751214252106,0.2048,2436.8,2436.4,0.001]
[1751214252307,0.9765,2436.8,2436.4,6.626]
[1751214252507,0.9765,2436.8,2436.4,10.73032078]
[1751214253549,0.9765,2436.8,2436.4,4.10532078]
[1751214253735,0.9765,2436.8,2436.4,10.73032078]
[1751214254856,0.2048,2436.7,2436.4,10.73032078]
[1751214255545,0.2048,2436.7,2436.5,4.10420195]
[1751214255947,0.2048,2436.7,2436.4,8.37610903]
[1751214256843,0.2048,2436.7,2436.5,4.10424011]
[1751214259862,0.2048,2436.7,2436.6,4.10407945]
[1751214260537,0.2048,2436.7,2436.5,4.10416029]
[1751214261358,0.2048,2436.7,2436.6,4.10407945]
[1751214262074,0.2048,2436.7,2436.5,4.10416061]
[1751214262270,0.2048,2436.7,2436.6,4.10407945]
[1751214262558,0.002,2436.9,2436.8,4.10374261]
[1751214263174,0.002,2436.9,2436.8,4.85564261]
[1751214264488,0.002,2436.9,2436.8,5.06044261]
[1751214265180,0.002,2436.9,2436.8,6.625]
[1751214269619,0.002,2436.9,2436.8,10.72874261]
[1751214270417,0.002,2436.9,2436.8,11.48064261]
[1751214270621,0.002,2436.9,2436.8,13.45938397]
[1751214270776,0.002,2436.9,2436.8,13.66418397]
[1751214274639,0.002,2436.9,2436.8,18.41418397]
[1751214276448,0.002,2436.9,2436.8,18.41518397]
[1751214279743,0.002,2436.9,2436.8,17.66328397]
[1751214280630,0.002,2436.9,2436.8,12.91328397]
[1751214280808,0.002,2436.9,2436.8,8.80854136]
[1751214281008,0.002,2436.9,2436.8,6.8298]
[1751214281719,0.002,2436.9,2436.8,10.93354261]
[1751214282222,0.002,2436.9,2436.8,6.8298]
[1751214283637,0.002,2436.9,2436.8,0.001]
[1751214283810,0.002,2436.9,2436.8,6.625]
[1751214285144,13.60746099,2436.9,2436.8,0.001]
[1751214285349,12.62688804,2436.9,2436.8,0.001]
[1751214285943,5.08337421,2436.9,2436.8,0.001]
[1751214290267,0.2068,2436.9,2436.8,0.001]
[1751214291768,0.002,2436.9,2436.8,0.001]
[1751214292672,0.002,2436.9,2436.8,4.92874261]
[1751214292834,0.002,2436.9,2436.8,7.17420461]
[1751214296196,0.002,2436.9,2436.8,13.79720461]
[1751214296401,0.002,2436.9,2436.8,2.246462]
[1751214296570,0.002,2436.9,2436.8,6.624]
[1751214297608,0.002,2436.9,2436.8,0.001]
[1751214297791,0.002,2436.9,2436.8,6.624]
[1751214298811,0.002,2436.9,2436.8,0.001]
[1751214300306,4.10557421,2436.9,2436.8,0.001]
[1751214300603,0.002,2436.9,2436.8,0.001]
[1751214301019,4.10557421,2436.9,2436.8,0.001]
[1751214301222,5.70129008,2436.9,2436.8,0.001]
[1751214301517,6.49919008,2436.9,2436.8,0.001]
[1751214302881,2.39561587,2436.9,2436.8,0.001]
[1751214303107,0.002,2436.9,2436.8,0.001]
[1751214306122,0.002,2436.9,2436.8,4.10474261]
[1751214306320,0.002,2436.9,2436.8,9.61754261]
[1751214306625,0.002,2436.9,2436.8,9.82234261]
[1751214306807,0.002,2436.9,2436.8,11.87726575]
[1751214307510,0.002,2436.9,2436.8,6.80592314]
[1751214307809,0.002,2436.9,2436.8,4.751]
[1751214308182,4.10557421,2436.9,2436.8,4.751]
[1751214308401,0.2068,2436.9,2436.8,4.751]
[1751214309316,4.31037421,2436.9,2436.8,4.751]
[1751214310203,4.31037421,2436.9,2436.8,0.001]
[1751214310516,5.1517409,2436.9,2436.8,0.001]
[1751214311317,1.04816669,2436.9,2436.8,0.001]
[1751214311475,0.2068,2436.9,2436.8,0.001]
[1751214312713,4.31037421,2436.9,2436.8,0.001]
[1751214313322,0.2068,2436.9,2436.8,0.001]
[1751214325098,4.31037421,2436.9,2436.8,0.001]
[1751214325298,0.2068,2436.9,2436.8,0.001]
[1751214325509,4.31037421,2436.9,2436.8,0.001]
[1751214326510,0.2068,2436.9,2436.8,0.001]
[1751214333152,4.31037421,2436.9,2436.8,0.001]
[1751214333442,0.2068,2436.9,2436.8,0.001]
[1751214333637,4.31037421,2436.9,2436.8,0.001]
[1751214333942,5.74141163,2436.9,2436.8,0.001]
[1751214335917,1.63783742,2436.9,2436.8,0.001]
[1751214336529,5.74141163,2436.9,2436.8,0.001]
[1751214340360,21.73127421,2436.9,2436.8,0.001]
[1751214341050,22.40019678,2436.9,2436.8,0.001]
[1751214344962,21.73127421,2436.9,2436.8,0.001]
[1751214351968,15.10827421,2436.9,2436.8,0.001]
[1751214352269,21.73127421,2436.9,2436.8,0.001]
[1751214352561,15.10827421,2436.9,2436.8,0.001]
[1751214352765,21.73127421,2436.9,2436.8,0.001]
[1751214356824,15.10827421,2436.9,2436.8,0.001]
[1751214357029,21.73127421,2436.9,2436.8,0.001]
[1751214358366,20.93337421,2436.9,2436.8,0.001]
[1751214364244,21.73127421,2436.9,2436.8,0.001]
[1751214364474,22.28127421,2436.9,2436.8,0.001]
[1751214364674,52.95019678,2436.9,2436.8,0.001]
[1751214366779,22.95019678,2436.9,2436.8,0.001]
[1751214367182,52.95019678,2436.9,2436.8,0.001]
[1751214370581,46.32719678,2436.9,2436.8,0.001]
[1751214370894,23.97327421,2436.9,2436.8,0.001]
[1751214371303,14.31037421,2436.9,2436.8,0.001]
[1751214371485,20.93237421,2436.9,2436.8,0.001]
[1751214371671,28.47588804,2436.9,2436.8,0.001]
[1751214379091,29.25428804,2436.9,2436.8,0.001]
[1751214382501,29.80428804,2436.9,2436.8,0.001]
[1751214384374,14.86037421,2436.9,2436.8,0.001]
[1751214384580,29.02588804,2436.9,2436.8,0.001]
[1751214384902,22.40388804,2436.9,2436.8,0.001]
[1751214385101,29.02588804,2436.9,2436.8,0.001]
[1751214385600,14.31037421,2436.9,2436.8,0.001]
[1751214385801,4.31037421,2436.9,2436.8,0.7988]
[1751214386005,0.2068,2436.9,2436.8,4.90254261]
[1751214386312,0.2068,2436.9,2436.8,1.69945689]
[1751214386467,0.2068,2436.9,2436.8,0.7988]
[1751214390722,4.31037421,2436.9,2436.8,0.7988]
[1751214391515,0.2068,2436.9,2436.8,0.7988]
[1751214393426,4.31037421,2436.9,2436.8,0.7988]
[1751214394020,0.2068,2436.9,2436.8,0.7988]
[1751214395189,4.31037421,2436.9,2436.8,0.7988]
[1751214396090,11.85388804,2436.9,2436.8,0.001]
[1751214396292,15.11171962,2436.9,2436.8,0.001]
[1751214396802,11.85388804,2436.9,2436.8,0.001]
[1751214397416,21.85388804,2436.9,2436.8,0.001]
[1751214414954,21.85764866,2436.9,2436.8,0.001]
[1751214426567,52.40764866,2436.9,2436.8,0.001]
[1751214426770,53.20554866,2436.9,2436.8,0.001]
[1751214428171,53.8741383,2436.9,2436.8,0.001]
[1751214435578,23.8741383,2436.9,2436.8,0.001]
[1751214435785,53.8741383,2436.9,2436.8,0.001]
[1751214436261,23.8741383,2436.9,2436.8,0.001]
[1751214436451,53.8741383,2436.9,2436.8,0.001]
[1751214437378,23.8741383,2436.9,2436.8,0.001]
[1751214437584,53.8741383,2436.9,2436.8,0.001]
[1751214438796,4.65424789,2436.5,2436.4,0.001]
[1751214438964,29.60382234,2436.5,2436.4,0.001]
[1751214440560,59.60382234,2436.5,2436.4,0.001]
[1751214443574,59.91812705,2436.5,2436.4,0.001]
[1751214446905,60.58671669,2436.5,2436.4,0.001]
[1751214450391,34.1047533,2436.2,2436.1,0.002]
[1751214450592,61.98151739,2436.2,2436.1,0.002]
[1751214457978,14.8597218,2436.1,2435.9,0.002]
[1751214458185,52.14931144,2436.1,2435.9,0.002]
[1751214459913,22.14931144,2436.1,2435.9,0.002]
[1751214460109,52.14931144,2436.1,2435.9,0.002]
[1751214461799,22.14931144,2436.1,2435.9,0.002]
[1751214462118,52.14931144,2436.1,2435.9,0.002]
[1751214463825,56.46931144,2436.1,2435.9,0.002]
[1751214464030,52.14931144,2436.1,2435.9,0.002]
[1751214467051,22.14931144,2436.1,2435.9,0.002]
[1751214467329,52.14931144,2436.1,2435.9,0.002]
[1751214469001,45.52831144,2436.1,2435.9,0.002]
[1751214469202,53.84131144,2436.1,2435.9,0.002]
[1751214470642,14.10576449,2435.6,2435.5,0.7436]
[1751214470844,20.72676449,2435.6,2435.5,0.7436]
[1751214471635,16.621,2435.6,2435.5,0.7436]
[1751214471838,20.72676449,2435.6,2435.5,0.7436]
[1751214472036,20.72676449,2435.6,2435.1,4.10752872]
[1751214472037,10.0,2435.4,2435.1,0.001]
[1751214472204,4.31123889,2435.2,2435.1,0.001]
[1751214472821,0.2048,2435.2,2435.1,0.001]
[1751214473808,0.2048,2435.2,2435.1,0.8165]
[1751214474009,4.31123889,2435.2,2435.1,0.8165]
[1751214475933,21.85851334,2435.2,2435.1,0.8165]
[1751214478020,54.98269927,2435.2,2435.1,0.001]
[1751214478238,63.29469927,2435.2,2435.1,0.001]
[1751214478461,33.29469927,2435.2,2435.1,0.001]
[1751214478751,63.29469927,2435.2,2435.1,0.001]
[1751214479558,63.59962539,2435.2,2435.1,0.001]
[1751214479782,4.10804654,2434.3,2434.1,0.8232]
[1751214479962,20.73312587,2434.2,2434.1,0.8232]
[1751214480326,16.626,2434.2,2434.1,0.8232]
[1751214480527,20.73412587,2434.2,2434.1,0.8232]
[1751214480843,1.691,2435.0,2434.2,0.8222]
[1751214481048,4.10765694,2434.5,2434.2,0.8222]
[1751214481244,4.10769247,2434.5,2434.2,0.8222]
[1751214481449,4.10779176,2434.4,2434.2,0.8222]
[1751214481834,4.10795711,2434.3,2434.2,0.8222]
[1751214482020,6.63,2434.4,2434.2,0.8222]
[1751214482021,10.73787163,2434.4,2434.2,0.8222]
[1751214482226,14.10754029,2434.6,2434.2,0.8222]
[1751214482528,6.634,2434.5,2434.3,0.8128]
[1751214483127,10.0,2434.6,2434.3,0.8128]
[1751214483455,10.0,2434.6,2434.4,0.8128]
[1751214483671,10.0,2434.6,2434.4,4.92056015]
[1751214483828,10.0,2434.6,2434.4,4.10776015]
[1751214484031,16.636,2434.8,2434.5,0.8128]
[1751214484274,20.74313279,2434.8,2434.5,0.8128]
[1751214484431,10.0,2434.8,2434.5,0.8128]
[1751214484634,16.636,2434.8,2434.5,0.8128]
[1751214485453,20.74313485,2434.8,2434.5,0.8128]
[1751214486375,16.635,2434.8,2434.5,0.8128]
[1751214488052,0.2048,2434.6,2434.5,0.8128]
[1751214489534,6.8388,2434.6,2434.5,0.8128]
[1751214490579,0.2048,2434.6,2434.5,0.8128]
[1751214490939,0.30492612,2435.2,2434.6,0.7796]
[1751214490940,11.65376909,2435.2,2434.6,0.7796]
[1751214491142,10.2048,2434.9,2434.6,0.7796]
[1751214491486,6.8438,2434.9,2434.7,0.7796]
[1751214491695,0.2048,2434.9,2434.8,0.7796]
[1751214494557,4.31174484,2434.9,2434.5,4.31232596]
[1751214494758,14.18527445,2434.8,2434.4,0.7796]
[1751214495059,4.10761963,2434.5,2434.4,0.7796]
[1751214495267,4.31241963,2434.5,2434.4,0.7796]
[1751214495666,0.2048,2434.5,2434.4,0.7796]
[1751214497041,4.31241963,2434.5,2434.4,0.7796]
[1751214497241,4.31241963,2434.5,2434.2,0.792]
[1751214498270,0.2048,2434.5,2434.2,0.792]
[1751214499793,6.8458,2434.5,2434.2,0.792]
[1751214500289,10.95348927,2434.5,2434.2,0.792]
[1751214500669,6.8458,2434.5,2434.2,0.792]
[1751214500856,0.2048,2434.5,2434.2,0.792]